bitfinex/quotes_SOLUSD_20260304
["timestamp","ask_amount","ask_price","bid_price","bid_amount"]
[1772618974413,0.28432314,90.909,90.884,1e-08]
[1772618974597,4.97697552,90.89,90.884,1e-08]
[1772618974910,3.69383402,90.924,90.884,1e-08]
[1772618974911,0.28432314,90.889,90.884,1e-08]
[1772618975414,3.69383402,90.979,90.884,1e-08]
[1772618975709,109.91185067,90.982,90.884,1e-08]
[1772618975710,0.28432314,90.909,90.884,1e-08]
[1772618976113,0.28432314,90.919,90.884,1e-08]
[1772618976304,15.23230163,90.888,90.884,1e-08]
[1772618976618,6.8060494,90.888,90.884,1e-08]
[1772618976812,0.14216157,90.929,90.885,4.5]
[1772618977016,4.97697552,90.95,90.887,4.5]
[1772618977399,38.4831059,90.949,90.889,4.5]
[1772618977594,10.99517311,90.949,90.889,4.5]
[1772618977900,4.97697552,90.97,90.897,4.5]
[1772618978114,0.28432314,90.969,90.897,4.5]
[1772618978306,4.97697552,90.97,90.897,4.5]
[1772618978505,0.28432314,90.949,90.897,4.5]
[1772618979112,27.48090947,90.973,90.884,1e-08]
[1772618979113,0.28432314,90.919,90.884,1e-08]
[1772618979428,0.28432314,90.907,90.884,1e-08]
[1772618980134,0.28432314,90.907,90.869,4.5]
[1772618980135,0.28432314,90.889,90.841,11.00824517]
[1772618980299,0.14216157,90.907,90.842,4.5]
[1772618980800,0.28432314,90.907,90.842,4.5]
[1772618980996,0.28432314,90.899,90.846,4.5]
[1772618981316,11.00134216,90.898,90.847,11.00751813]
[1772618981622,0.28432314,90.897,90.848,4.5]
[1772618982921,0.28432314,90.897,90.836,27.52210497]
[1772618982922,0.28432314,90.889,90.836,4.5]
[1772618983222,4.97697552,90.88,90.836,4.5]
[1772618983718,0.28432314,90.889,90.836,4.5]
[1772618983925,0.28432314,90.889,90.833,6.81942211]
[1772618983926,4.97697552,90.91,90.846,4.5]
[1772618984125,0.28432314,90.916,90.846,4.5]
[1772618984325,0.28432314,90.899,90.846,4.5]
[1772618984518,0.28432314,90.889,90.846,4.5]
[1772618984823,0.28432314,90.889,90.838,4.5]
[1772618985027,38.49411039,90.923,90.846,4.5]
[1772618985028,0.28432314,90.909,90.846,4.5]
[1772618985321,4.97697552,90.93,90.862,4.5]
[1772618985630,7.98833356,90.946,90.862,4.5]
[1772618985631,27.49095547,90.939,90.876,4.5]
[1772618985805,0.28432314,90.938,90.876,4.5]
[1772618986000,38.48733766,90.939,90.876,4.5]
[1772618987407,4.97697552,90.93,90.876,4.5]
[1772618987604,0.28432314,90.917,90.867,11.00509535]
[1772618987921,11.13781828,90.945,90.876,4.5]
[1772618988120,0.14216157,90.944,90.877,4.82477569]
[1772618988321,0.14216157,90.944,90.886,4.5]
[1772618988624,0.28432314,90.944,90.886,4.5]
[1772618988806,0.14216157,90.939,90.886,4.5]
[1772618989001,0.14216157,90.929,90.871,4.5]
[1772618989225,0.28432314,90.919,90.871,4.5]
[1772618989718,0.28432314,90.919,90.858,0.95097844]
[1772618989719,7.98833356,90.946,90.877,4.5]
[1772618989921,0.28432314,90.929,90.877,4.5]
[1772618990120,0.28432314,90.919,90.877,4.5]
[1772618990323,0.28432314,90.919,90.864,4.5]
[1772618990522,0.28432314,90.919,90.866,4.5]
[1772618990826,0.28432314,90.929,90.866,4.5]
[1772618991204,4.97697552,90.93,90.866,4.5]
[1772618991419,4.97697552,90.94,90.879,3.69383402]
[1772618991623,4.97697552,90.93,90.869,4.5]
[1772618991825,0.28432314,90.919,90.869,4.5]
[1772618993121,4.97697552,90.93,90.869,4.5]
[1772618993303,0.28432314,90.929,90.869,4.5]
[1772618993503,38.49199365,90.928,90.87,11.00473203]
[1772618993727,0.28432314,90.919,90.871,4.5]
[1772618994224,0.28432314,90.919,90.798,11.0]
[1772618994225,0.28432314,90.879,90.828,11.33703024]
[1772618994426,4.97697552,90.87,90.83,4.5]
[1772618994729,4.97697552,90.85,90.828,6.83703024]
[1772618994929,4.97697552,90.86,90.828,6.83703024]
[1772618995312,4.97697552,90.88,90.83,4.5]
[1772618995718,11.0036422,90.879,90.832,4.5]
[1772618996426,0.28432314,90.878,90.832,4.5]
[1772618996821,0.28432314,90.869,90.832,4.5]
[1772618997019,3.69383402,90.906,90.832,4.5]
[1772618997020,4.97697552,90.89,90.832,4.5]
[1772618997331,0.28432314,90.869,90.828,6.83703024]
[1772618997624,0.28432314,90.869,90.829,11.00969954]
[1772618997826,11.00497424,90.868,90.829,15.50969954]
[1772618998009,0.28432314,90.869,90.83,4.5]
[1772618998412,11.2892406,90.869,90.83,4.5]
[1772618999734,11.28796534,90.879,90.832,4.5]
[1772619000115,11.28796534,90.879,90.828,6.83703024]
[1772619000116,0.28432314,90.859,90.828,6.83703024]
[1772619000737,0.28432314,90.849,90.81,0.59]
[1772619001040,0.28432314,90.839,90.81,0.59]
[1772619001248,0.28432314,90.819,90.773,4.5]
[1772619001541,0.28432314,90.809,90.8,1e-08]
[1772619001713,0.28432314,90.804,90.739,11.02055425]
[1772619001910,0.28432314,90.779,90.733,4.5]
[1772619002114,0.28432314,90.769,90.723,11.02249315]
[1772619002310,0.28432314,90.769,90.731,11.02159129]
[1772619002512,0.28432314,90.796,90.732,4.5]
[1772619002731,0.28432314,90.796,90.731,11.02159129]
[1772619002732,0.28432314,90.796,90.736,4.5]
[1772619002936,0.28432314,90.789,90.738,4.5]
[1772619003165,9.79993714,90.844,90.731,11.02159129]
[1772619003166,4.97697552,90.83,90.748,4.82477569]
[1772619003320,0.28432314,90.829,90.758,4.82477569]
[1772619003523,0.28432314,90.829,90.767,4.5]
[1772619003720,0.14216157,90.829,90.767,4.5]
[1772619004041,0.14216157,90.828,90.769,4.5]
[1772619004543,11.00839066,90.84,90.771,4.5]
[1772619004834,9.79993714,90.843,90.777,4.5]
[1772619005229,4.97697552,90.84,90.777,4.5]
[1772619005427,0.28432314,90.839,90.777,4.5]
[1772619005627,11.00812399,90.842,90.777,4.5]
[1772619005628,4.97697552,90.83,90.777,4.5]
[1772619005818,0.28432314,90.819,90.777,4.5]
[1772619006214,27.51317289,90.866,90.787,4.5]
[1772619006436,4.97697552,90.85,90.787,4.5]
[1772619006634,0.28432314,90.839,90.787,4.5]
[1772619006844,0.28432314,90.809,90.772,11.01661305]
[1772619007137,0.28432314,90.829,90.773,4.5]
[1772619007441,4.97697552,90.82,90.773,4.5]
[1772619007614,0.28432314,90.819,90.773,4.5]
[1772619008037,0.28432314,90.822,90.775,4.5]
[1772619008631,0.28432314,90.819,90.775,4.5]
[1772619009638,11.00982076,90.828,90.775,4.5]
[1772619010437,27.51049935,90.875,90.778,4.5]
[1772619010662,20.80803916,90.843,90.782,4.5]
[1772619011018,9.79993714,90.843,90.782,4.5]
[1772619011221,4.97697552,90.84,90.782,4.5]
[1772619011418,0.28432314,90.839,90.782,4.5]
[1772619011622,0.28432314,90.829,90.782,4.5]
[1772619011823,0.28432314,90.829,90.78,0.5]
[1772619011824,0.28432314,90.819,90.78,0.5]
[1772619012039,0.28432314,90.809,90.78,0.5]
[1772619012741,0.28432314,90.819,90.78,5.0]
[1772619012932,0.28432314,90.819,90.782,4.5]
[1772619013441,9.79993714,90.843,90.785,4.5]
[1772619013636,0.28432314,90.842,90.785,4.5]
[1772619013843,0.28432314,90.842,90.793,4.5]
[1772619014028,9.79993714,90.843,90.793,4.5]
[1772619014223,4.97697552,90.84,90.793,4.5]
[1772619014430,0.28432314,90.829,90.782,4.5]
[1772619014635,0.28432314,90.809,90.776,11.01610017]
[1772619014842,0.28432314,90.817,90.781,4.5]
[1772619015231,0.28432314,90.816,90.781,4.5]
[1772619015559,9.79993714,90.843,90.782,4.5]
[1772619015731,0.28432314,90.829,90.782,4.5]
[1772619015926,0.28432314,90.819,90.78,0.5]
[1772619016132,0.28432314,90.809,90.78,0.5]
[1772619016342,0.28432314,90.799,90.78,0.5]
[1772619016839,11.01345844,90.798,90.755,11.01867665]
[1772619017238,0.28432314,90.799,90.755,11.01867665]
[1772619017837,11.01345844,90.798,90.754,4.5]
[1772619018038,0.28432314,90.799,90.755,11.01867665]
[1772619018428,0.28432314,90.799,90.755,15.51867665]
[1772619018636,0.28432314,90.779,90.743,4.5]
[1772619018834,11.0158849,90.778,90.733,11.02134835]
[1772619019136,0.28432314,90.779,90.733,11.02134835]
[1772619019447,11.0158849,90.778,90.733,11.02134835]
[1772619019655,0.28432314,90.769,90.719,4.5]
[1772619020153,0.28432314,90.749,90.706,4.5]
[1772619020536,0.28432314,90.739,90.679,4.5]
[1772619020754,0.28432314,90.719,90.679,4.5]
[1772619020960,0.28432314,90.727,90.68,4.5]
[1772619021349,4.97697552,90.75,90.688,4.5]
[1772619021655,0.28432314,90.749,90.688,4.5]
[1772619022556,0.28432314,90.739,90.688,4.5]
[1772619022856,0.28432314,90.719,90.678,4.5]
[1772619023053,0.28432314,90.719,90.679,4.5]
[1772619023842,0.28432314,90.709,90.652,4.5]
[1772619024147,0.28432314,90.689,90.677,1e-08]
[1772619024548,0.28432314,90.689,90.617,4.5]
[1772619024754,0.28432314,90.669,90.63,4.5]
[1772619025056,0.28432314,90.669,90.599,3.69383402]
[1772619025257,0.28432314,90.659,90.616,11.35693839]
[1772619025441,0.28432314,90.659,90.617,4.5]
[1772619025759,0.28432314,90.659,90.618,4.5]
[1772619026143,0.28432314,90.667,90.618,4.5]
[1772619026333,0.28432314,90.667,90.62,4.5]
[1772619026947,55.12058245,90.711,90.62,4.5]
[1772619026948,0.28432314,90.678,90.63,4.5]
[1772619027152,4.97697552,90.7,90.64,4.5]
[1772619027662,0.28432314,90.649,90.611,4.5]
[1772619028249,0.28432314,90.649,90.612,4.5]
[1772619028764,0.28432314,90.669,90.612,4.5]
[1772619028960,0.28432314,90.667,90.614,4.5]
[1772619029147,0.28432314,90.692,90.62,4.5]
[1772619029342,0.28432314,90.659,90.62,4.5]
[1772619029763,0.28432314,90.659,90.612,11.0359476]
[1772619029764,4.97697552,90.69,90.621,4.82477569]
[1772619029969,11.02560144,90.698,90.63,4.5]
[1772619030269,4.97697552,90.71,90.63,4.5]
[1772619030466,4.97697552,90.68,90.63,4.5]
[1772619030765,0.14216157,90.679,90.63,4.5]
[1772619030950,0.14216157,90.679,90.632,4.5]
[1772619031153,0.14216157,90.709,90.635,4.5]
[1772619031659,0.28432314,90.709,90.635,4.5]
[1772619031961,0.14216157,90.709,90.635,4.5]
[1772619032163,44.05331569,90.8,90.631,93.7868941]
[1772619032164,44.04510218,90.816,90.64,4.5]
[1772619032463,44.04510218,90.816,90.631,182.05691208]
[1772619032464,4.99731879,90.77,90.686,3.69383402]
[1772619032671,4.99731879,90.76,90.69,4.5]
[1772619032961,4.99731879,90.75,90.691,11.02645245]
[1772619033189,4.99731879,90.75,90.692,4.5]
[1772619033373,0.28432314,90.749,90.692,4.5]
[1772619033549,4.99731879,90.75,90.692,4.5]
[1772619033751,0.28432314,90.749,90.692,4.5]
[1772619035258,0.28432314,90.749,90.693,11.02620929]
[1772619035461,0.28432314,90.749,90.694,4.5]
[1772619035666,0.28432314,90.747,90.694,4.5]
[1772619036366,0.28432314,90.749,90.694,4.5]
[1772619036881,4.99731879,90.78,90.7,4.5]
[1772619037046,3.69383402,90.777,90.7,4.5]
[1772619037250,0.28432314,90.776,90.7,4.5]
[1772619037450,4.99731879,90.77,90.702,4.5]
[1772619038448,0.14216157,90.769,90.702,4.5]
[1772619038652,4.99731879,90.75,90.69,4.5]
[1772619038869,4.99731879,90.75,90.675,55.14167349]
[1772619038870,0.28432314,90.771,90.677,4.5]
[1772619039075,0.28432314,90.739,90.677,4.5]
[1772619039271,0.28432314,90.739,90.624,44.13795869]
[1772619039272,0.28432314,90.739,90.679,4.5]
[1772619039469,0.28432314,90.749,90.681,4.5]
[1772619039854,0.28432314,90.749,90.69,4.5]
[1772619040693,0.28432314,90.739,90.69,4.5]
[1772619040868,0.28432314,90.729,90.681,4.5]
[1772619041248,4.82477569,90.818,90.691,4.82477569]
[1772619041449,4.99731879,90.77,90.702,4.5]
[1772619041675,4.99731879,90.78,90.707,4.82477569]
[1772619041971,4.99731879,90.78,90.71,4.5]
[1772619042382,4.99731879,90.79,90.71,4.5]
[1772619042671,4.99731879,90.76,90.71,4.5]
[1772619043376,0.28432314,90.759,90.71,4.5]
[1772619043873,0.28432314,90.739,90.69,3.69383402]
[1772619044280,0.28432314,90.739,90.691,4.5]
[1772619044462,0.28432314,90.729,90.691,4.5]
[1772619044666,0.28432314,90.719,90.688,11.02681721]
[1772619045464,0.28432314,90.729,90.681,4.5]
[1772619045811,4.99731879,90.73,90.681,4.5]
[1772619046080,0.28432314,90.729,90.681,4.5]
[1772619046488,0.28432314,90.739,90.681,4.5]
[1772619047372,0.28432314,90.729,90.683,4.5]
[1772619048661,4.99731879,90.76,90.683,4.5]
[1772619048860,107.49731879,90.76,90.683,4.5]
[1772619049059,107.49731879,90.76,90.686,4.5]
[1772619049383,0.28432314,90.759,90.692,4.5]
[1772619049778,0.28432314,90.749,90.692,4.5]
[1772619050377,0.28432314,90.739,90.692,4.5]
[1772619051092,11.01814719,90.76,90.688,4.5]
[1772619051093,0.28432314,90.729,90.688,4.5]
[1772619051390,0.28432314,90.719,90.677,4.5]
[1772619052590,0.28432314,90.719,90.642,55.16178755]
[1772619052591,0.28432314,90.689,90.655,11.03083117]
[1772619052792,0.28432314,90.679,90.629,27.5847362]
[1772619052978,0.28432314,90.679,90.631,4.5]
[1772619053371,0.28432314,90.679,90.633,4.5]
[1772619053605,0.28432314,90.649,90.614,4.5]
[1772619053907,4.99731879,90.72,90.614,4.5]
[1772619054073,0.28432314,90.679,90.617,4.5]
[1772619054479,0.28432314,90.689,90.632,4.5]
[1772619055487,0.28432314,90.679,90.634,4.5]
[1772619056677,0.28432314,90.669,90.633,11.03350876]
[1772619056878,0.28432314,90.669,90.634,4.5]
[1772619057383,0.28432314,90.689,90.636,4.5]
[1772619057588,27.5558756,90.725,90.635,11.03326529]
[1772619057589,4.99731879,90.72,90.642,4.82477569]
[1772619057883,4.99731879,90.72,90.653,4.5]
[1772619058074,0.28432314,90.709,90.653,4.5]
[1772619058380,0.28432314,90.699,90.653,4.5]
[1772619058582,0.28432314,90.689,90.653,4.5]
[1772619059196,0.28432314,90.689,90.639,4.5]
[1772619059591,0.28432314,90.689,90.641,4.5]
[1772619060291,0.28432314,90.669,90.64,11.03265666]
[1772619061090,0.28432314,90.669,90.618,4.5]
[1772619061398,0.28432314,90.659,90.618,4.5]
[1772619061892,0.28432314,90.659,90.619,38.62324677]
[1772619062095,0.28432314,90.669,90.622,4.5]
[1772619062395,102.5,90.703,90.638,4.82477569]
[1772619062585,107.49731879,90.71,90.643,4.5]
[1772619062784,102.5,90.71,90.653,4.5]
[1772619063403,0.28432314,90.729,90.653,4.5]
[1772619063892,0.1,90.83,90.673,4.5]
[1772619063893,4.99731879,90.73,90.673,4.5]
[1772619064091,0.28432314,90.729,90.675,4.5]
[1772619064299,11.01576355,90.779,90.682,4.5]
[1772619064480,11.01576355,90.779,90.693,4.5]
[1772619064682,11.01519184,90.784,90.696,4.82477569]
[1772619064884,4.99731879,90.77,90.703,4.5]
[1772619066203,4.99731879,90.79,90.713,4.5]
[1772619066391,4.99731879,90.78,90.713,4.5]
[1772619066776,0.28432314,90.779,90.713,4.5]
[1772619066976,4.99731879,90.78,90.721,4.5]
[1772619067187,4.99731879,90.78,90.723,4.5]
[1772619067680,0.28432314,90.779,90.723,4.5]
[1772619068081,4.99731879,90.78,90.725,4.5]
[1772619068379,0.28432314,90.749,90.717,11.02325641]
[1772619069097,0.28432314,90.729,90.677,4.5]
[1772619069278,0.28432314,90.709,90.677,4.5]
[1772619070089,0.28432314,90.719,90.677,4.5]
[1772619070284,0.28432314,90.719,90.678,15.52803326]
[1772619070488,0.28432314,90.709,90.678,11.02803326]
[1772619070681,0.28432314,90.709,90.679,4.5]
[1772619071188,0.28432314,90.699,90.667,38.60273607]
[1772619071386,4.99731879,90.71,90.668,4.5]
[1772619071699,0.14216157,90.699,90.667,11.02937121]
[1772619071903,0.28432314,90.699,90.667,11.02937121]
[1772619072198,0.14216157,90.699,90.667,11.02937121]
[1772619072505,0.28432314,90.709,90.661,11.03010114]
[1772619072683,0.28432314,90.709,90.661,15.53010114]
[1772619072997,0.28432314,90.709,90.662,4.5]
[1772619073579,0.28432314,90.709,90.649,15.53156129]
[1772619073580,0.28432314,90.689,90.649,15.53156129]
[1772619073981,0.28432314,90.689,90.65,4.5]
[1772619074294,0.28432314,90.689,90.651,38.60961268]
[1772619074603,0.28432314,90.689,90.652,4.5]
[1772619074793,0.28432314,90.699,90.652,4.5]
[1772619075097,0.28432314,90.689,90.652,4.5]
[1772619076585,0.28432314,90.679,90.626,4.5]
[1772619076779,0.28432314,90.669,90.626,4.5]
[1772619077502,0.28432314,90.679,90.626,4.5]
[1772619077700,44.06159811,90.782,90.632,4.5]
[1772619077891,3.69383402,90.776,90.642,4.5]
[1772619078233,4.99731879,90.7,90.642,4.5]
[1772619078819,38.55517244,90.779,90.608,44.1457361]
[1772619078820,4.99731879,90.67,90.612,4.5]
[1772619079102,4.99731879,90.66,90.612,4.5]
[1772619079282,3.69383402,90.696,90.606,11.03675469]
[1772619079484,3.69383402,90.696,90.601,4.5]
[1772619079485,4.99731879,90.64,90.611,11.03618765]
[1772619079788,0.28432314,90.639,90.608,11.03647909]
[1772619079982,4.99731879,90.63,90.601,4.5]
[1772619080185,0.28432314,90.649,90.611,4.5]
[1772619080798,0.28432314,90.649,90.612,15.53606586]
[1772619081198,5.01061082,90.64,90.612,15.53606586]
[1772619081781,0.28432314,90.649,90.613,4.5]
[1772619082506,0.28432314,90.639,90.61,0.2]
[1772619082804,5.01061082,90.63,90.61,0.2]
[1772619083403,0.28432314,90.639,90.61,4.7]
[1772619083887,0.28432314,90.639,90.61,0.2]
[1772619084090,0.28432314,90.629,90.61,0.2]
[1772619084713,0.28432314,90.619,90.58,0.2]
[1772619085008,0.28432314,90.619,90.587,11.03902085]
[1772619085305,5.01061082,90.61,90.582,11.03963973]
[1772619085805,0.28432314,90.617,90.58,0.2]
[1772619086009,5.01061082,90.6,90.58,0.2]
[1772619086212,0.28432314,90.619,90.58,5.21061082]
[1772619086388,0.28432314,90.619,90.58,11.2399025]
[1772619086585,0.28432314,90.619,90.584,11.03941859]
[1772619087104,0.28432314,90.609,90.58,0.2]
[1772619087291,0.28432314,90.609,90.582,11.03960404]
[1772619087492,0.28432314,90.609,90.586,11.03918792]
[1772619087705,5.01061082,90.63,90.591,4.5]
[1772619088104,0.28432314,90.629,90.591,4.5]
[1772619089296,5.01061082,90.65,90.612,11.03606586]
[1772619089500,5.01061082,90.66,90.613,4.5]
[1772619089903,38.58067217,90.719,90.621,4.5]
[1772619089904,5.01061082,90.67,90.621,4.5]
[1772619090110,5.01061082,90.67,90.631,4.5]
[1772619090397,3.69383402,90.716,90.641,4.5]
[1772619090598,0.28432314,90.679,90.641,4.5]
[1772619090919,0.28432314,90.669,90.613,4.5]
[1772619091214,5.01061082,90.68,90.631,4.5]
[1772619091420,5.01061082,90.68,90.643,4.5]
[1772619091617,5.01061082,90.7,90.651,4.5]
[1772619091798,0.28432314,90.689,90.651,4.5]
[1772619092121,5.01061082,90.66,90.621,11.03496981]
[1772619092303,0.28432314,90.649,90.621,11.03496981]
[1772619092501,0.28432314,90.649,90.617,4.5]
[1772619092502,0.28432314,90.649,90.618,11.03533514]
[1772619093014,5.01061082,90.64,90.602,4.5]
[1772619093417,0.28432314,90.649,90.604,4.5]
[1772619094115,0.28432314,90.659,90.621,4.5]
[1772619095713,0.28432314,90.649,90.618,11.03526071]
[1772619095915,0.28432314,90.649,90.609,4.5]
[1772619095916,5.00963687,90.64,90.613,11.03590286]
[1772619096112,0.28432314,90.649,90.613,11.03590286]
[1772619096424,0.28432314,90.639,90.6,5.00963687]
[1772619096607,0.28432314,90.639,90.601,15.53740576]
[1772619096918,0.28432314,90.629,90.595,11.03804493]
[1772619097813,0.28432314,90.629,90.596,4.5]
[1772619098522,3.69383402,90.657,90.601,4.5]
[1772619098707,0.28432314,90.649,90.601,4.5]
[1772619099025,3.69383402,90.663,90.601,4.5]
[1772619099026,0.28432314,90.639,90.601,4.5]
[1772619099400,0.28432314,90.639,90.59,15.73863963]
[1772619099601,5.00963687,90.61,90.59,0.2]
[1772619099800,0.28432314,90.609,90.59,0.2]
[1772619100020,5.00963687,90.62,90.59,0.2]
[1772619100212,30.69045573,90.762,90.59,0.2]
[1772619100213,0.28432314,90.619,90.59,0.2]
[1772619100415,0.28432314,90.619,90.59,11.2387323]
[1772619101316,0.28432314,90.619,90.59,0.2]
[1772619101808,0.28432314,90.609,90.59,0.2]
[1772619102006,11.32075439,90.609,90.59,0.2]
[1772619102207,5.00963687,90.6,90.59,0.2]
[1772619102519,11.32075439,90.609,90.59,0.2]
[1772619103403,0.28432314,90.609,90.59,0.2]
[1772619104225,0.28432314,90.599,90.58,0.2]
[1772619106134,11.03655306,90.608,90.58,0.2]
[1772619106135,0.28432314,90.607,90.58,0.2]
[1772619106309,0.28432314,90.599,90.58,0.2]
[1772619107012,0.28432314,90.599,90.58,1e-08]
[1772619107214,0.28432314,90.589,90.58,1e-08]
[1772619107414,0.28432314,90.589,90.57,0.2]
[1772619108428,5.00963687,90.6,90.571,4.5]
[1772619108739,5.00963687,90.61,90.571,11.0410617]
[1772619108904,5.00963687,90.62,90.572,4.5]
[1772619110231,5.00963687,90.61,90.573,11.0408179]
[1772619110545,0.28432314,90.609,90.574,4.5]
[1772619110727,0.28432314,90.599,90.574,4.5]
[1772619111107,5.00963687,90.59,90.57,0.2]
[1772619111306,0.28432314,90.589,90.57,0.2]
[1772619111529,0.28432314,90.579,90.55,0.2]
[1772619111701,5.00963687,90.56,90.55,0.2]
[1772619112112,0.28432314,90.559,90.54,0.2]
[1772619112339,11.0426467,90.558,90.54,0.2]
[1772619112630,0.28432314,90.557,90.54,0.2]
[1772619113412,5.00963687,90.55,90.54,0.2]
[1772619113916,0.28432314,90.549,90.51,0.2]
[1772619114112,5.00963687,90.54,90.51,0.2]
[1772619114312,0.28432314,90.549,90.512,11.04824049]
[1772619114313,0.28432314,90.547,90.512,11.04824049]
[1772619114512,3.69383402,90.573,90.51,0.2]
[1772619114513,5.00963687,90.56,90.529,4.5]
[1772619114726,5.00963687,90.57,90.537,4.5]
[1772619115029,5.00963687,90.58,90.537,4.5]
[1772619115231,0.28432314,90.569,90.537,4.5]
[1772619115432,0.14216157,90.569,90.537,4.5]
[1772619115826,0.28432314,90.569,90.537,4.5]
[1772619116021,0.14216157,90.579,90.537,4.5]
[1772619116229,0.28432314,90.579,90.541,4.5]
[1772619116432,0.28432314,90.577,90.543,4.5]
[1772619117129,44.10857752,90.686,90.551,4.5]
[1772619117325,5.00963687,90.62,90.581,4.5]
[1772619117525,5.00963687,90.61,90.581,4.5]
[1772619117710,5.00963687,90.61,90.56,5.00963687]
[1772619117711,5.00963687,90.61,90.561,4.5]
[1772619117917,5.00963687,90.6,90.561,4.5]
[1772619118136,0.14216157,90.599,90.561,4.5]
[1772619118620,0.14216157,90.599,90.563,4.5]
[1772619119231,0.28432314,90.599,90.563,4.5]
[1772619119424,0.14216157,90.599,90.563,4.5]
[1772619119824,0.14216157,90.607,90.571,4.5]
[1772619120017,11.03597843,90.613,90.571,4.5]
[1772619120620,11.03597843,90.613,90.541,55.22356541]
[1772619120621,5.00963687,90.58,90.545,4.5]
[1772619120917,0.28432314,90.609,90.571,4.5]
[1772619121623,0.28432314,90.618,90.571,4.5]
[1772619121823,0.28432314,90.609,90.571,4.5]
[1772619122431,0.28432314,90.599,90.571,4.5]
[1772619122615,0.28432314,90.597,90.551,4.5]
[1772619122932,0.28432314,90.609,90.571,4.5]
[1772619123333,0.28432314,90.609,90.581,4.5]
[1772619123539,0.28432314,90.629,90.581,4.5]
[1772619123732,0.28432314,90.629,90.601,4.5]
[1772619123733,0.14216157,90.629,90.601,4.5]
[1772619124042,27.57748401,90.654,90.601,4.5]
[1772619124043,5.00963687,90.65,90.601,4.5]
[1772619124249,5.00963687,90.66,90.611,4.5]
[1772619124834,5.00963687,90.65,90.613,4.5]
[1772619125020,38.60620566,90.659,90.613,4.5]
[1772619125219,5.00963687,90.65,90.613,4.5]
[1772619125733,5.00963687,90.65,90.6,5.00963687]
[1772619125734,0.28432314,90.649,90.621,4.5]
[1772619125922,16.03876108,90.67,90.621,4.5]
[1772619126127,16.03876108,90.67,90.631,4.5]
[1772619126719,0.28432314,90.667,90.631,4.5]
[1772619126918,0.28432314,90.667,90.633,4.5]
[1772619127121,5.00963687,90.69,90.641,4.5]
[1772619127531,0.28432314,90.689,90.641,4.5]
[1772619127841,5.00963687,90.7,90.651,4.5]
[1772619128040,11.02547988,90.699,90.661,4.5]
[1772619128234,11.02547988,90.699,90.641,4.5]
[1772619128235,5.00963687,90.68,90.641,4.5]
[1772619128626,0.28432314,90.679,90.641,4.5]
[1772619128832,0.28432314,90.679,90.643,4.5]
[1772619129225,27.56369971,90.699,90.651,4.5]
[1772619129226,0.28432314,90.699,90.651,4.5]
[1772619129425,0.14216157,90.699,90.651,4.5]
[1772619129645,0.28432314,90.699,90.651,4.5]
[1772619129939,0.28432314,90.699,90.661,4.5]
[1772619130246,5.00963687,90.7,90.661,4.5]
[1772619130722,0.28432314,90.689,90.661,4.5]
[1772619131240,11.31113141,90.689,90.661,4.5]
[1772619132521,11.31113141,90.689,90.647,4.5]
[1772619132722,11.31113141,90.689,90.624,4.5]
[1772619132723,0.28432314,90.659,90.624,4.5]
[1772619132924,5.00963687,90.64,90.614,4.5]
[1772619133123,0.28432314,90.646,90.614,4.5]
[1772619133324,0.28432314,90.659,90.621,4.5]
[1772619134748,11.02921225,90.669,90.631,4.5]
[1772619134926,11.02988075,90.806,90.615,38.62495171]
[1772619134927,5.00963687,90.69,90.641,4.5]
[1772619135130,5.00963687,90.69,90.651,4.5]
[1772619135131,11.02686223,90.688,90.651,4.5]
[1772619135334,0.28432314,90.687,90.651,4.5]
[1772619135736,11.02686223,90.688,90.652,4.5]
[1772619135935,0.14216157,90.687,90.652,4.5]
[1772619136142,11.02686223,90.688,90.652,4.5]
[1772619136526,0.28432314,90.687,90.652,4.5]
[1772619136730,0.28432314,90.669,90.641,4.5]